bitfinex-derivatives/quotes_BTCF0:USTF0_20250614
["timestamp","ask_amount","ask_price","bid_price","bid_amount"]
[1749871390494,0.73746571,105370.0,105360.0,1.98048547]
[1749871390688,0.73746571,105370.0,105360.0,1.9656534]
[1749871390890,0.73746571,105370.0,105360.0,1.98048547]
[1749871391092,0.73746571,105370.0,105360.0,1.9656534]
[1749871391498,0.73746571,105370.0,105360.0,1.98048547]
[1749871391689,0.73746571,105370.0,105360.0,1.9656534]
[1749871391891,0.73746571,105370.0,105360.0,1.98048547]
[1749871392291,0.73746571,105370.0,105360.0,1.9656534]
[1749871392691,0.73746571,105370.0,105360.0,1.98048547]
[1749871393792,1.09746571,105370.0,105360.0,1.98048547]
[1749871394088,1.09746571,105370.0,105360.0,1.9656534]
[1749871394089,0.85594065,105370.0,105360.0,1.9656534]
[1749871394587,0.85594065,105370.0,105360.0,1.98048547]
[1749871395192,1.20594065,105370.0,105360.0,1.98048547]
[1749871395393,0.85594065,105370.0,105360.0,1.9656534]
[1749871395595,0.85594065,105370.0,105360.0,1.98048547]
[1749871395997,1.17594065,105370.0,105360.0,1.98048547]
[1749871396194,0.85594065,105370.0,105360.0,1.9656534]
[1749871396399,0.85594065,105370.0,105360.0,1.98048547]
[1749871396700,0.85594065,105370.0,105360.0,1.9656534]
[1749871396902,0.85594065,105370.0,105360.0,1.98048547]
[1749871397792,0.85594065,105370.0,105360.0,1.98048546]
[1749871399101,1.18594065,105370.0,105360.0,1.9656534]
[1749871399307,0.85594065,105370.0,105360.0,1.98048546]
[1749871399800,0.85594065,105370.0,105360.0,1.9656534]
[1749871400002,0.85594065,105370.0,105360.0,1.98048546]
[1749871400203,0.7672322,105370.0,105360.0,1.98048546]
[1749871400394,0.7672322,105370.0,105360.0,1.9656534]
[1749871400595,0.7672322,105370.0,105360.0,1.98048546]
[1749871400791,0.7672322,105370.0,105360.0,1.9656534]
[1749871401296,0.7672322,105370.0,105360.0,1.98048546]
[1749871401699,1.1472322,105370.0,105360.0,1.98048546]
[1749871402002,0.7672322,105370.0,105360.0,1.98048546]
[1749871402707,0.7672322,105370.0,105360.0,1.9656534]
[1749871403205,0.7672322,105370.0,105360.0,1.98048544]
[1749871403607,0.7672322,105370.0,105360.0,1.9656534]
[1749871403800,0.7672322,105370.0,105360.0,1.98048544]
[1749871404001,0.73748757,105370.0,105360.0,2.02189203]
[1749871404199,0.73748757,105370.0,105360.0,2.00705999]
[1749871404402,0.73748757,105370.0,105360.0,2.02189203]
[1749871404801,0.73748757,105370.0,105360.0,2.00705999]
[1749871405001,0.73748757,105370.0,105360.0,2.02189203]
[1749871405198,0.73748757,105370.0,105360.0,2.00705999]
[1749871405400,0.15397217,105370.0,105360.0,2.69269203]
[1749871405707,0.06524186,105370.0,105360.0,2.73815999]
[1749871405908,0.06524186,105370.0,105360.0,2.76825999]
[1749871406306,0.06524186,105370.0,105360.0,2.78309065]
[1749871406498,0.00314186,105370.0,105360.0,2.77239834]
[1749871406899,0.00314186,105370.0,105360.0,2.81681438]
[1749871407104,0.00314186,105370.0,105360.0,2.83164491]
[1749871407403,0.00314186,105370.0,105360.0,2.89093547]
[1749871407901,0.00314186,105370.0,105360.0,2.89093508]
[1749871408203,0.00314186,105370.0,105360.0,3.18933508]
[1749871409708,0.00314186,105370.0,105360.0,3.18933496]
[1749871409909,0.00314186,105370.0,105360.0,3.17450541]
[1749871410105,0.00314186,105370.0,105360.0,3.18933496]
[1749871410308,0.00314186,105370.0,105360.0,3.18933497]
[1749871411505,0.00314186,105370.0,105360.0,3.17450541]
[1749871411809,0.00314186,105370.0,105360.0,3.18933495]
[1749871412506,0.00314186,105370.0,105360.0,3.17450541]
[1749871412703,0.00314186,105370.0,105360.0,3.18933497]
[1749871413100,0.00314186,105370.0,105360.0,3.17450541]
[1749871413310,0.00314186,105370.0,105360.0,3.18933497]
[1749871414015,0.00314186,105370.0,105360.0,3.17450541]
[1749871414709,0.00314186,105370.0,105360.0,3.17036706]
[1749871415115,0.00314186,105370.0,105360.0,3.18519662]
[1749871415612,0.19285726,105370.0,105360.0,3.17036706]
[1749871415816,0.00314186,105370.0,105360.0,3.18519662]
[1749871416213,0.19285726,105370.0,105360.0,3.18519662]
[1749871416516,0.19285726,105370.0,105360.0,3.18519663]
[1749871417715,0.55365726,105370.0,105360.0,2.49470647]
[1749871417915,0.58455726,105370.0,105360.0,2.49470647]
[1749871418215,0.58455726,105370.0,105360.0,2.47987603]
[1749871418419,0.58455726,105370.0,105360.0,2.49470662]
[1749871418612,0.58455726,105370.0,105360.0,2.49470661]
[1749871418914,0.61675726,105370.0,105360.0,2.49470661]
[1749871419311,0.61675726,105370.0,105360.0,2.49470662]
[1749871419509,0.61675726,105370.0,105360.0,1.55010662]
[1749871419711,0.61675726,105370.0,105360.0,2.37951603]
[1749871419912,0.61675726,105370.0,105360.0,2.11111603]
[1749871420114,0.61675726,105370.0,105360.0,2.12594667]
[1749871420319,0.61675726,105370.0,105360.0,2.11111603]
[1749871420718,0.61675726,105370.0,105360.0,2.12594679]
[1749871420914,0.61675726,105370.0,105360.0,2.06586679]
[1749871421217,0.61675726,105370.0,105360.0,2.02145075]
[1749871421416,0.61675726,105370.0,105360.0,2.00661999]
[1749871421617,0.61675726,105370.0,105360.0,2.02145084]
[1749871422518,0.61675726,105370.0,105360.0,1.07729084]
[1749871422719,0.61675726,105370.0,105360.0,2.02137084]
[1749871423121,0.61675726,105370.0,105360.0,2.06578688]
[1749871423421,0.61675726,105370.0,105360.0,2.06566688]
[1749871423916,0.61675726,105370.0,105360.0,1.12170688]
[1749871424215,0.61675726,105370.0,105360.0,2.0212113]
[1749871424521,0.70548757,105370.0,105360.0,2.02121147]
[1749871424716,0.70548757,105370.0,105360.0,2.00637989]
[1749871424911,0.70548757,105370.0,105360.0,2.02121147]
[1749871425112,0.70548757,105370.0,105360.0,2.00633989]
[1749871425418,0.70548757,105370.0,105360.0,2.02117172]
[1749871425609,0.70548757,105370.0,105360.0,2.00633989]
[1749871425923,0.70548757,105370.0,105360.0,2.02117172]
[1749871426819,0.70548757,105370.0,105360.0,2.00633989]
[1749871427020,0.70548757,105370.0,105360.0,1.23929989]
[1749871427216,0.70548757,105370.0,105360.0,2.00629989]
[1749871427616,0.70548757,105370.0,105360.0,2.02113178]
[1749871428127,0.70548757,105370.0,105360.0,2.00629989]
[1749871429016,0.70548757,105370.0,105360.0,2.02113179]
[1749871429216,0.70548757,105370.0,105360.0,2.00629989]
[1749871429418,0.70548757,105370.0,105360.0,2.02113182]
[1749871430421,0.70548757,105370.0,105360.0,2.00629989]
[1749871430617,0.73658757,105370.0,105360.0,2.00629989]
[1749871430818,0.73658757,105370.0,105360.0,1.25413182]
[1749871431019,0.73658757,105370.0,105360.0,2.02101182]
[1749871431520,0.73658757,105370.0,105360.0,2.00617989]
[1749871431823,0.73658757,105370.0,105360.0,2.02101182]
[1749871432024,0.73658757,105370.0,105360.0,2.00617989]
[1749871432418,0.73658757,105370.0,105360.0,2.02101182]
[1749871433425,0.73658757,105370.0,105360.0,2.00617989]
[1749871433725,0.73658757,105370.0,105360.0,2.02101182]
[1749871433924,0.74072592,105370.0,105360.0,2.02101182]
[1749871434115,0.74072592,105370.0,105360.0,2.00617989]
[1749871434425,0.74072592,105370.0,105360.0,2.02101182]
[1749871434625,0.74072592,105370.0,105360.0,2.00617989]
[1749871434822,0.74072592,105370.0,105360.0,2.02101182]
[1749871435124,0.73658757,105370.0,105360.0,2.00617989]
[1749871435519,0.73658757,105370.0,105360.0,2.02101182]
[1749871435919,0.73658757,105370.0,105360.0,2.00617989]
[1749871436325,0.73658757,105370.0,105360.0,2.02101182]
[1749871436921,0.73658757,105370.0,105360.0,2.00617989]
[1749871437126,0.73658757,105370.0,105360.0,2.02101182]
[1749871437426,0.73658757,105370.0,105360.0,2.00617989]
[1749871437824,0.73658757,105370.0,105360.0,2.02101182]
[1749871438426,0.73658757,105370.0,105360.0,2.00617989]
[1749871438622,0.73658757,105370.0,105360.0,2.02101182]
[1749871439327,0.73658757,105370.0,105360.0,2.00617989]
[1749871439523,0.73658757,105370.0,105360.0,2.02101182]
[1749871439828,0.73658757,105370.0,105360.0,2.00577989]
[1749871440031,0.74072592,105370.0,105360.0,1.18545989]
[1749871440320,0.74072592,105370.0,105360.0,1.20029235]
[1749871440526,0.74072592,105370.0,105360.0,1.18545989]
[1749871440726,0.74072592,105370.0,105360.0,1.20029235]
[1749871441127,0.73658757,105370.0,105360.0,1.20029235]
[1749871441633,0.73658757,105370.0,105360.0,0.24407905]
[1749871441818,0.7663322,105370.0,105360.0,1.15888595]
[1749871442023,0.77047055,105370.0,105360.0,1.1588862]
[1749871442419,0.74075514,105370.0,105360.0,1.15888622]
[1749871442824,0.74075514,105370.0,105360.0,1.1440534]
[1749871443132,0.73661679,105370.0,105360.0,1.15888622]
[1749871443523,0.73661679,105370.0,105360.0,1.1440534]
[1749871444032,0.7663322,105370.0,105360.0,1.15888621]
[1749871444830,0.7663322,105370.0,105360.0,1.1440534]
[1749871445035,0.7663322,105370.0,105360.0,1.15888621]
[1749871446326,0.7663322,105370.0,105360.0,1.1440534]
[1749871446535,0.7763322,105370.0,105360.0,1.1440534]
[1749871446836,0.7763322,105370.0,105360.0,1.15888621]
[1749871447628,0.7763322,105370.0,105360.0,1.15888551]
[1749871447939,0.7763322,105370.0,105360.0,1.1440534]
[1749871448234,0.7763322,105370.0,105360.0,1.15888542]
[1749871448632,0.7763322,105370.0,105360.0,1.1440534]
[1749871449031,0.7763322,105370.0,105360.0,1.15888542]
[1749871449229,0.7763322,105370.0,105360.0,1.15888541]
[1749871449634,0.7763322,105370.0,105360.0,1.1440534]
[1749871449935,0.7763322,105370.0,105360.0,0.39240542]
[1749871450732,0.7763322,105370.0,105360.0,0.3775734]
[1749871450931,0.7763322,105370.0,105360.0,0.39240542]
[1749871452239,0.80597993,105370.0,105360.0,0.39240542]
[1749871452431,0.80597993,105370.0,105360.0,0.3775734]
[1749871452633,0.80597993,105370.0,105360.0,0.39240542]
[1749871452836,0.80597993,105370.0,105360.0,0.3775734]
[1749871453538,0.80597993,105370.0,105360.0,0.39240542]
[1749871453740,0.80597993,105370.0,105360.0,0.39240588]
[1749871454140,0.77630016,105370.0,105360.0,0.3775734]
[1749871454333,0.77630016,105370.0,105360.0,0.39240595]
[1749871454841,1.14630016,105370.0,105360.0,0.3775734]
[1749871455040,0.77630016,105370.0,105360.0,0.39240595]
[1749871457540,0.77630016,105370.0,105360.0,0.3775734]
[1749871457741,0.77630016,105370.0,105360.0,0.39240595]
[1749871458442,0.77630016,105370.0,105360.0,0.3775734]
[1749871458743,0.77630016,105370.0,105360.0,0.39240595]
[1749871459345,0.77630016,105370.0,105360.0,0.3775734]
[1749871459544,0.77630016,105370.0,105360.0,0.3772534]
[1749871459739,0.77630016,105370.0,105360.0,0.39208595]
[1749871459940,0.77630016,105370.0,105360.0,0.3772534]
[1749871460140,0.77630016,105370.0,105360.0,0.21556602]
[1749871460341,1.17121216,105370.0,105360.0,0.06732459]
[1749871460537,1.17121216,105370.0,105360.0,0.06732503]
[1749871460737,1.17121216,105370.0,105360.0,0.05249197]
[1749871460940,1.17121216,105370.0,105360.0,0.06732509]
[1749871461141,1.17121216,105370.0,105360.0,0.05249197]
[1749871461345,1.17121216,105370.0,105360.0,0.06732509]
[1749871462343,1.17121216,105370.0,105360.0,0.05249197]
[1749871462547,1.17121216,105370.0,105360.0,0.06732509]
[1749871462939,1.17121216,105370.0,105360.0,0.05249197]
[1749871463140,1.17121216,105370.0,105360.0,0.06732509]
[1749871463342,1.31933483,105370.0,105360.0,0.02583312]
[1749871463643,1.31933483,105370.0,105360.0,0.02583313]
[1749871463834,1.20089193,105370.0,105360.0,0.011]
[1749871464039,1.1712107,105370.0,105360.0,0.011]
[1749871464239,1.1712107,105370.0,105360.0,0.02583313]
[1749871464452,1.1712107,105370.0,105360.0,0.011]
[1749871464643,1.1712107,105370.0,105360.0,0.02583313]
[1749871465441,1.1712107,105370.0,105360.0,0.011]
[1749871466143,1.0762987,105370.0,105360.0,0.02583313]
[1749871467346,1.22442137,105370.0,105360.0,0.02583313]
[1749871469747,1.22442137,105370.0,105360.0,0.011]
[1749871469944,1.22442137,105370.0,105360.0,0.02583313]
[1749871470145,1.22442137,105370.0,105360.0,0.02583348]
[1749871470343,1.22442137,105370.0,105360.0,0.02997183]
[1749871470650,1.10597993,105370.0,105360.0,0.01513835]
[1749871470845,1.10597993,105370.0,105360.0,0.02997202]
[1749871471146,1.07632011,105370.0,105360.0,0.02997201]
[1749871471344,1.07632011,105370.0,105360.0,0.02997202]
[1749871471947,1.84308011,105370.0,105360.0,0.02997202]
[1749871472247,1.84308011,105370.0,105360.0,0.02997208]
[1749871472449,1.84308011,105370.0,105360.0,0.02997209]
[1749871472645,1.84308011,105370.0,105360.0,0.01513835]
[1749871474244,1.84308011,105370.0,105360.0,0.02997209]
[1749871474541,1.84308011,105370.0,105360.0,0.01513835]
[1749871474741,1.87273993,105370.0,105360.0,0.02997209]
[1749871474946,1.87273993,105370.0,105360.0,0.01513835]
[1749871475251,1.87273993,105370.0,105360.0,0.02997209]
[1749871476149,1.87273993,105370.0,105360.0,0.01513835]
[1749871476347,1.87273993,105370.0,105360.0,0.02997209]
[1749871476545,1.87273993,105370.0,105360.0,0.01513835]
[1749871476746,1.87273993,105370.0,105360.0,0.02997209]
[1749871476948,1.87273993,105370.0,105360.0,0.01513835]
[1749871477147,1.87273993,105370.0,105360.0,0.02997209]
[1749871477350,1.87273993,105370.0,105360.0,0.01513835]
[1749871477648,1.87273993,105370.0,105360.0,0.02997209]
[1749871478951,1.87273993,105370.0,105360.0,0.01513835]
[1749871479152,1.87273993,105370.0,105360.0,0.02997209]
[1749871479351,1.87273993,105370.0,105360.0,0.01513835]
[1749871479552,1.87273993,105370.0,105360.0,0.02997209]
[1749871480042,1.87273993,105370.0,105360.0,0.01513835]
[1749871480244,1.87273993,105370.0,105360.0,0.02997209]
[1749871480757,1.10597993,105370.0,105360.0,0.02997209]
[1749871480957,2.04905993,105370.0,105360.0,0.02997209]
[1749871482251,2.04905993,105370.0,105360.0,0.01513835]
[1749871482950,2.04905993,105370.0,105360.0,0.02997209]
[1749871483349,2.04905993,105370.0,105360.0,0.01513835]
[1749871483548,2.04905993,105370.0,105360.0,0.02997209]
[1749871484254,2.25643167,105370.0,105360.0,0.02997209]
[1749871484757,2.25643167,105370.0,105360.0,0.01513835]
[1749871484950,2.25643167,105370.0,105360.0,0.02997209]
[1749871485854,2.25643167,105370.0,105360.0,0.01513835]
[1749871486157,2.25643167,105370.0,105360.0,0.02997209]
[1749871486657,2.25643167,105370.0,105360.0,0.02997208]
[1749871487454,2.25643167,105370.0,105360.0,0.01513835]
[1749871488255,2.61723167,105370.0,105360.0,0.02997208]
[1749871488648,2.469109,105370.0,105360.0,0.02997208]
[1749871490858,2.469109,105370.0,105360.0,0.01513835]
[1749871491050,2.469109,105370.0,105360.0,0.02997208]
[1749871491255,2.469109,105370.0,105360.0,0.01513835]
[1749871491455,2.469109,105370.0,105360.0,0.02997209]
[1749871492464,2.469109,105370.0,105360.0,0.02997208]
[1749871493161,2.61721817,105370.0,105360.0,0.02997208]
[1749871493369,2.40984643,105370.0,105360.0,0.01513835]
[1749871493559,2.40984643,105370.0,105360.0,0.02997208]
[1749871493956,2.40984643,105370.0,105360.0,0.02997209]
[1749871494160,2.40984643,105370.0,105360.0,0.01513835]
[1749871495166,2.40984643,105370.0,105360.0,0.02997209]
[1749871495759,2.40984643,105370.0,105360.0,0.01513835]
[1749871495963,2.40984643,105370.0,105360.0,0.02997209]
[1749871496261,2.26173726,105370.0,105360.0,0.0299727]
[1749871496466,2.26173726,105370.0,105360.0,0.02997277]
[1749871496667,2.26173726,105370.0,105360.0,0.02997286]
[1749871496866,2.26173726,105370.0,105360.0,0.01513835]
[1749871497065,2.26173726,105370.0,105360.0,0.0299729]
[1749871497263,2.26173726,105370.0,105360.0,0.01513835]
[1749871497469,2.26173726,105370.0,105360.0,0.0299729]
[1749871498266,2.26173726,105370.0,105360.0,0.02997289]
[1749871499958,2.26173726,105370.0,105360.0,0.01513835]
[1749871500871,2.26173726,105370.0,105360.0,0.02997313]
[1749871502567,2.26173726,105370.0,105360.0,0.01513835]
[1749871503068,2.26173726,105370.0,105360.0,0.02997313]
[1749871503663,2.26173726,105370.0,105360.0,0.01513835]
[1749871503863,2.26173726,105370.0,105360.0,0.02997313]
[1749871505368,2.26173726,105370.0,105360.0,0.01513835]
[1749871506165,2.40984643,105370.0,105360.0,0.02997313]
[1749871506373,2.40984643,105370.0,105360.0,0.01513835]
[1749871506774,2.40984643,105370.0,105360.0,0.02997313]
[1749871507863,2.41276643,105370.0,105360.0,0.02997313]
[1749871508064,2.41264643,105370.0,105360.0,0.02997313]
[1749871508260,2.41264643,105370.0,105360.0,0.01513835]
[1749871508474,2.41264643,105370.0,105360.0,0.02997313]
[1749871509573,2.41264643,105370.0,105360.0,0.01513835]
[1749871509878,2.41264643,105370.0,105360.0,0.02997313]
[1749871510774,2.41264643,105370.0,105360.0,0.02997316]
[1749871511074,2.41264643,105370.0,105360.0,0.01513835]
[1749871511261,2.41264643,105370.0,105360.0,0.02997316]
[1749871511669,2.41264643,105370.0,105360.0,0.01513835]
[1749871511975,2.41264643,105370.0,105360.0,0.02997316]
[1749871512171,2.41264643,105370.0,105360.0,0.01513835]
[1749871512573,2.41264643,105370.0,105360.0,0.02997316]
[1749871515981,1.46676643,105370.0,105360.0,0.02997316]
[1749871516177,2.41204643,105370.0,105360.0,0.02997316]
[1749871517678,2.41204643,105370.0,105360.0,0.01513835]
[1749871517879,2.41204643,105370.0,105360.0,0.02997316]
[1749871518080,2.41204643,105370.0,105360.0,0.01513835]
[1749871518278,2.61941817,105370.0,105360.0,0.01513835]
[1749871518466,2.61941817,105370.0,105360.0,0.02997316]
[1749871519267,2.61921817,105370.0,105360.0,0.01513835]
[1749871519573,2.61921817,105370.0,105360.0,0.02997316]
[1749871520271,2.61921817,105370.0,105360.0,0.01513835]
[1749871520469,2.41184643,105370.0,105360.0,0.02997316]
[1749871521071,2.41184643,105370.0,105360.0,0.01513835]
[1749871521474,2.41184643,105370.0,105360.0,0.02997316]
[1749871522376,2.41172643,105370.0,105360.0,0.02997316]
[1749871522577,2.41172643,105370.0,105360.0,0.02997259]
[1749871522769,2.41172643,105370.0,105360.0,0.01513835]
[1749871522975,2.41172643,105370.0,105360.0,0.02997242]
[1749871523374,2.41172643,105370.0,105360.0,0.01513835]
[1749871523576,2.41172643,105370.0,105360.0,0.0299724]
[1749871523777,2.41172643,105370.0,105360.0,0.02997241]
[1749871523978,2.41172643,105370.0,105360.0,0.0299724]
[1749871524378,1.64424643,105370.0,105360.0,0.0299724]
[1749871524579,1.64424643,105370.0,105360.0,0.25010553]
[1749871524580,1.37256643,105370.0,105360.0,0.25010553]
[1749871524785,1.34297461,105370.0,105360.0,0.31320481]
[1749871524985,1.34297461,105370.0,105360.0,0.35463441]
[1749871525289,1.34297461,105370.0,105360.0,0.35463439]
[1749871525586,1.34297461,105370.0,105360.0,0.35463426]
[1749871525779,1.34297461,105370.0,105360.0,0.3398019]
[1749871526178,1.22445726,105370.0,105360.0,0.3398019]
[1749871526691,1.22445726,105370.0,105360.0,0.35463424]
[1749871527188,1.22445726,105370.0,105360.0,0.3398019]
[1749871527388,1.22445726,105370.0,105360.0,0.35463424]
[1749871528178,1.22445726,105370.0,105360.0,0.3398019]
[1749871528884,1.22445726,105370.0,105360.0,0.35463424]
[1749871529090,1.31327851,105370.0,105360.0,0.3398019]
[1749871529291,1.04327851,105370.0,105360.0,0.3798019]
[1749871529493,1.04327851,105370.0,105360.0,0.39463395]
[1749871529685,1.04327851,105370.0,105360.0,0.3798019]
[1749871530086,1.04327851,105370.0,105360.0,0.39463398]
[1749871531792,1.04327851,105370.0,105360.0,0.35320383]
[1749871531991,1.04327851,105370.0,105360.0,0.35320385]
[1749871532291,1.04327851,105370.0,105360.0,0.35320379]
[1749871532492,1.04327851,105370.0,105360.0,0.33837175]
[1749871532695,1.04327851,105370.0,105360.0,0.35320377]
[1749871533196,1.04327851,105370.0,105360.0,0.33837175]
[1749871533698,1.04327851,105370.0,105360.0,0.35320377]
[1749871533889,1.04327851,105370.0,105360.0,0.33837175]
[1749871534086,1.07297461,105370.0,105360.0,0.35320377]
[1749871534492,0.35137461,105370.0,105360.0,0.35320377]
[1749871534796,0.35137461,105370.0,105360.0,0.33837175]
[1749871534992,0.35137461,105370.0,105360.0,0.35320296]
[1749871535993,0.35137461,105370.0,105360.0,0.31320296]
[1749871536193,0.2816133,105370.0,105360.0,0.64320272]
[1749871536399,0.2816133,105370.0,105360.0,0.68454779]
[1749871536593,0.2816133,105370.0,105360.0,0.77945948]
[1749871536800,0.2816133,105370.0,105360.0,0.76462897]
[1749871537099,0.2816133,105370.0,105360.0,0.77945933]
[1749871537300,0.2816133,105370.0,105360.0,0.77945932]
[1749871538102,0.19285726,105370.0,105360.0,0.76462897]
[1749871538397,0.19285726,105370.0,105360.0,1.54661927]
[1749871538700,0.19285726,105370.0,105360.0,1.54661919]
[1749871538891,0.19285726,105370.0,105360.0,1.53178897]
[1749871539088,0.19285726,105370.0,105360.0,1.54661926]
[1749871539494,0.00314186,105370.0,105360.0,2.14258897]
[1749871539695,0.00314186,105370.0,105360.0,2.15741885]
[1749871539998,0.00314186,105370.0,105360.0,2.15741878]
[1749871540201,0.00314186,105370.0,105360.0,2.15741882]
[1749871540599,0.00314186,105370.0,105360.0,2.14258897]
[1749871540995,0.00314186,105370.0,105360.0,2.15741884]
[1749871541200,0.00314186,105370.0,105360.0,2.20581884]
[1749871541702,0.00314186,105370.0,105360.0,2.19098897]
[1749871541902,0.00314186,105370.0,105360.0,2.20581885]
[1749871542600,0.00314186,105370.0,105360.0,2.19098897]
[1749871542801,0.00314186,105370.0,105360.0,2.20581885]
[1749871543999,0.00314186,105370.0,105360.0,2.19098897]
[1749871544203,0.00314186,105370.0,105360.0,2.25023484]
[1749871544406,0.00314186,105370.0,105360.0,2.23540501]
[1749871544605,0.00314186,105370.0,105360.0,2.25023465]
[1749871544798,0.00314186,105370.0,105360.0,2.25023467]
[1749871545007,0.00314186,105370.0,105360.0,2.23540501]
[1749871545205,0.00314186,105370.0,105360.0,2.25023465]
[1749871545411,0.00314186,105370.0,105360.0,2.23540501]
[1749871545602,0.00314186,105370.0,105360.0,2.25023436]
[1749871545802,0.00314186,105370.0,105360.0,2.25023429]
[1749871546007,0.00314186,105370.0,105360.0,2.23540501]
[1749871546510,0.00314186,105370.0,105360.0,2.25023413]
[1749871546902,0.00314186,105370.0,105360.0,2.23540501]
[1749871547108,0.00314186,105370.0,105360.0,2.25023413]
[1749871547516,0.00314186,105370.0,105360.0,2.25016852]
[1749871547711,0.51225604,105390.0,105360.0,2.31344848]
[1749871547907,0.61280607,105390.0,105380.0,0.1896974]
[1749871548101,0.61280607,105390.0,105380.0,1.39252571]
[1749871548102,0.2523824,105390.0,105380.0,1.39252571]
[1749871548308,0.2523794,105390.0,105380.0,1.45362553]
[1749871548519,0.2523794,105390.0,105380.0,1.43886262]
[1749871549006,0.2523794,105390.0,105380.0,1.45359661]
[1749871549709,0.2573794,105390.0,105380.0,1.45362552]
[1749871549904,0.2573794,105390.0,105380.0,1.43886262]
[1749871550407,0.2573794,105390.0,105380.0,1.4536138]
[1749871550808,0.2573794,105390.0,105380.0,1.45361379]
[1749871551117,0.2573794,105390.0,105380.0,1.42281379]
[1749871551814,0.26698689,105390.0,105380.0,1.40806262]
[1749871552007,0.29778689,105390.0,105380.0,1.23281381]
[1749871552411,0.29778689,105390.0,105380.0,1.24952509]
[1749871553017,0.29778689,105390.0,105380.0,1.54792508]
[1749871553520,0.29778689,105390.0,105380.0,1.5331739]
[1749871560215,0.29778689,105390.0,105380.0,1.6790739]
[1749871560420,0.65858689,105390.0,105380.0,1.4890739]
[1749871563624,0.65858689,105390.0,105380.0,1.4990739]
[1749871564916,0.74734293,105390.0,105380.0,1.2006739]
[1749871570527,0.19686353,105390.0,105380.0,1.60501035]
[1749871570829,0.07730749,105390.0,105380.0,1.93471035]
[1749871571019,0.07730749,105390.0,105380.0,1.99691035]
[1749871571628,0.04660749,105390.0,105380.0,1.99691035]
[1749871571828,0.04660749,105390.0,105380.0,2.0010487]
[1749871572029,0.04260749,105390.0,105380.0,2.0010487]
[1749871572328,0.04260749,105390.0,105380.0,2.06633973]
[1749871576140,0.04260749,105390.0,105380.0,2.44196732]
[1749871576328,0.01060749,105390.0,105380.0,2.44196732]
[1749871576840,0.01060749,105390.0,105380.0,2.44196685]
[1749871577233,0.001,105390.0,105380.0,2.42713973]
[1749871577436,0.001,105390.0,105380.0,2.44196681]
[1749871577734,0.001,105390.0,105380.0,2.44196685]
[1749871578138,0.001,105390.0,105380.0,2.44196684]
[1749871578337,0.001,105390.0,105380.0,2.4419668]
[1749871578540,0.001,105390.0,105380.0,2.42713973]
[1749871578936,0.001,105390.0,105380.0,2.44196681]
[1749871579634,0.001,105390.0,105380.0,2.42713973]
[1749871580136,0.001,105390.0,105380.0,2.44196681]
[1749871580332,0.001,105390.0,105380.0,2.39763036]
[1749871580738,0.001,105390.0,105380.0,2.42724589]
[1749871581141,0.001,105390.0,105380.0,2.44207297]
[1749871581337,0.001,105390.0,105380.0,2.42724589]
[1749871581541,0.001,105390.0,105380.0,2.44207297]
[1749871582240,0.001,105390.0,105380.0,2.42724589]
[1749871582635,0.001,105390.0,105380.0,2.44207297]
[1749871582835,0.001,105390.0,105380.0,2.42724589]
[1749871583035,0.001,105390.0,105380.0,2.43790818]
[1749871583335,0.001,105390.0,105380.0,2.43790817]
[1749871583538,0.001,105390.0,105380.0,2.4230811]
[1749871583743,0.001,105390.0,105380.0,2.37864147]
[1749871584134,0.001,105390.0,105380.0,2.37861529]
[1749871584843,0.08975604,105390.0,105380.0,2.37861529]
[1749871585043,0.08975604,105390.0,105380.0,2.36378838]
[1749871585445,0.08975604,105390.0,105380.0,2.37861526]
[1749871585645,0.08975604,105390.0,105380.0,2.37861525]
[1749871586041,0.08975604,105390.0,105380.0,2.36792673]
[1749871586347,0.08975604,105390.0,105380.0,2.3827536]
[1749871587547,0.001,105390.0,105380.0,2.44204463]
[1749871588648,0.001,105390.0,105380.0,2.44204447]
[1749871588849,0.001,105390.0,105380.0,2.42721776]
[1749871589347,0.001,105390.0,105380.0,2.44204447]
[1749871589549,0.001,105390.0,105380.0,2.38275347]
[1749871590047,0.001,105390.0,105380.0,2.33646673]
[1749871590250,0.0639,105390.0,105380.0,2.34715514]
[1749871590448,0.0639,105390.0,105380.0,2.33232838]
[1749871590844,0.0639,105390.0,105380.0,2.34715514]
[1749871591143,0.0639,105390.0,105380.0,2.35129349]
[1749871591448,0.0639,105390.0,105380.0,2.33646673]
[1749871591955,0.0639,105390.0,105380.0,2.35129349]
[1749871592450,0.0639,105390.0,105380.0,2.33646673]
[1749871592852,0.0639,105390.0,105380.0,2.35129349]
[1749871593245,0.0639,105390.0,105380.0,2.35126465]
[1749871593645,0.0639,105390.0,105380.0,2.33643789]
[1749871594051,0.0639,105390.0,105380.0,2.45514189]
[1749871594358,0.0639,105390.0,105380.0,2.45100354]
[1749871594748,0.0639,105390.0,105380.0,2.43617678]
[1749871594949,0.0639,105390.0,105380.0,2.45100354]
[1749871595149,0.0639,105390.0,105380.0,2.45514189]
[1749871595854,0.0639,105390.0,105380.0,2.44031513]
[1749871596055,0.0639,105390.0,105380.0,2.45514189]
[1749871596755,0.0639,105390.0,105380.0,2.44031513]
[1749871596955,0.0639,105390.0,105380.0,2.45514189]
[1749871598050,0.0639,105390.0,105380.0,2.45514186]
[1749871599761,0.0639,105390.0,105380.0,2.45514183]
[1749871600258,0.0639,105390.0,105380.0,2.44031513]
[1749871600557,0.0639,105390.0,105380.0,2.44980148]
[1749871600761,0.0322,105390.0,105380.0,2.46462807]
[1749871600955,0.0322,105390.0,105380.0,2.42805069]
[1749871601156,0.0322,105390.0,105380.0,2.42805012]
[1749871601464,0.0322,105390.0,105380.0,2.4132241]
[1749871601755,0.0322,105390.0,105380.0,2.42805015]
[1749871601958,0.0322,105390.0,105380.0,2.4132241]
[1749871602158,0.0322,105390.0,105380.0,1.62957015]
[1749871602358,0.0634,105390.0,105380.0,1.42219015]
[1749871602561,0.0942,105390.0,105380.0,2.36487015]
[1749871602753,0.2838794,105390.0,105380.0,2.3500441]
[1749871602952,0.0942,105390.0,105380.0,2.3500441]
[1749871603150,0.0942,105390.0,105380.0,2.36487022]
[1749871603357,0.0942,105390.0,105380.0,2.36073187]
[1749871603759,0.0942,105390.0,105380.0,2.34590575]
[1749871604156,0.0942,105390.0,105380.0,2.36073226]
[1749871604861,0.0942,105390.0,105380.0,2.34590575]
[1749871605263,0.0942,105390.0,105380.0,2.36073225]
[1749871606264,0.0942,105390.0,105380.0,2.34590575]
[1749871606464,0.0942,105390.0,105380.0,2.36073225]
[1749871606655,0.0942,105390.0,105380.0,1.41805225]
[1749871606859,0.0942,105390.0,105380.0,2.36069225]
[1749871607365,0.0942,105390.0,105380.0,2.36069224]
[1749871608063,0.0942,105390.0,105380.0,2.36069223]
[1749871608563,0.0942,105390.0,105380.0,2.36483058]
[1749871609066,0.0942,105390.0,105380.0,2.3500041]
[1749871609265,0.0942,105390.0,105380.0,2.36483061]
[1749871610165,0.0942,105390.0,105380.0,1.42219061]
[1749871610371,0.0942,105390.0,105380.0,2.3648306]
[1749871610666,0.0942,105390.0,105380.0,2.36069225]